fUSD/lending_fUSD_20251204
["ID","MTS","AMOUNT","RATE_DAILY","PERIOD"]
[396216745,1764828629249,-500.0,0.00031999,30]
[396216746,1764828629274,-500.0,0.00031999,30]
[396216747,1764828629300,-160.22065548,0.00031999,30]
[396216748,1764828629325,-4568.09880055,0.00032,10]
[396216749,1764828629352,-500.0,0.00032876,120]
[396216750,1764828629378,-179.22,0.000329,14]
[396216751,1764828629404,-413.75,0.000329,14]
[396216752,1764828629431,-500.0,0.00033698,120]
[396216753,1764828629457,-255.0,0.000344,120]
[396216754,1764828629482,-305.96646881,0.00034462,10]
[396216755,1764828629507,-1014.47,0.000345,14]
[396216756,1764828629534,-500.0,0.0003452,120]
[396216757,1764828629560,-572.52,0.00034751,30]
[396216758,1764828629585,-179.22,0.000348,14]
[396216759,1764828629611,-549.72965472,0.00034849,120]
[396216760,1764828629638,-766.29,0.00035,120]
[396216761,1764828629664,-1000.0,0.00035,22]
[396216762,1764828629690,-1000.0,0.00035,13]
[396216763,1764828629716,-413.75,0.000351,14]
[396216764,1764828629743,-500.0,0.00035342,120]
[396216765,1764828629769,-153.78771342,0.00036,120]
[396216766,1764828629804,-1000.84,0.00036,14]
[396216767,1764828629841,-180.44549568,0.00036164,120]
[396216768,1764828629866,-473.0,0.00036232,14]
[396216769,1764828629891,-985.26,0.000365,14]
[396216770,1764828629916,-473.0,0.00036506,14]
[396216771,1764828629940,-413.75,0.000366,14]
[396216772,1764828630103,-1014.47,0.000366,14]
[396216773,1764828630131,-1000.0,0.00036712,120]
[396216774,1764828630156,-473.0,0.0003678,14]
[396216775,1764828630182,-317.07,0.00036986,30]
[396216776,1764828630208,-473.0,0.00037054,14]
[396216777,1764828630232,-179.22,0.000372,14]
[396216778,1764828630257,-1000.0,0.0003726,120]
[396216779,1764828630282,-473.0,0.00037328,14]
[396216780,1764828630306,-199.0,0.00037534,10]
[396216781,1764828630331,-365.79399057,0.00037577,30]
[396216782,1764828630356,-593.14571256,0.00037577,30]
[396216783,1764828630380,-320.21867361,0.00037577,30]
[396216784,1764828630405,-338.71277399,0.00037577,30]
[396216785,1764828630429,-593.14571256,0.00037577,30]
[396216786,1764828630454,-593.14571256,0.00037577,30]
[396216787,1764828630479,-368.36695488,0.00037577,30]
[396216788,1764828630504,-300.42301382,0.00037577,30]
[396216789,1764828630528,-593.14571256,0.00037577,30]
[396216790,1764828630553,-593.14571256,0.00037577,30]
[396216791,1764828630578,-365.79399057,0.00037577,30]
[396216792,1764828630607,-593.14571256,0.00037577,30]
[396216793,1764828630633,-365.79399057,0.00037577,30]
[396216794,1764828630660,-593.14571256,0.00037577,30]
[396216795,1764828630687,-365.55526192,0.00037577,30]
[396216796,1764828630712,-473.0,0.00037602,14]
[396216797,1764828630736,-1000.0,0.00037808,120]
[396216798,1764828630761,-473.0,0.00037876,14]
[396216799,1764828630787,-199.0,0.00038082,11]
[396216800,1764828630811,-413.75,0.000381,14]
[396216801,1764828630837,-473.0,0.0003815,14]
[396216802,1764828630862,-1000.0,0.00038356,120]
[396216803,1764828630887,-473.0,0.00038424,14]
[396216804,1764828630912,-1267.82,0.000386,30]
[396216805,1764828630939,-1014.47,0.000386,14]
[396216806,1764828630968,-199.0,0.0003863,12]
[396216807,1764828630996,-473.0,0.00038698,14]
[396216808,1764828631023,-500.0,0.00038767,30]
[396216809,1764828631049,-500.0,0.00038767,30]
[396216810,1764828631075,-500.0,0.00038767,30]
[396216811,1764828631099,-302.85995797,0.000389,120]
[396216812,1764828631124,-473.0,0.00038972,14]
[396216813,1764828631150,-1584.28367893,0.00039,120]
[396216814,1764828631175,-500.0,0.00039041,30]
[396216815,1764828631201,-500.0,0.00039041,30]
[396216816,1764828631226,-261.14160991,0.00039178,13]
[396216817,1764828631250,-473.0,0.00039245,14]
[396216818,1764828631275,-500.0,0.00039315,30]
[396216819,1764828631300,-500.0,0.00039315,30]
[396216820,1764828631324,-151.0,0.000395,21]
[396216821,1764828631349,-473.0,0.00039519,14]
[396216822,1764828631374,-500.0,0.00039589,30]
[396216823,1764828631398,-500.0,0.00039589,30]
[396216824,1764828631422,-179.22,0.000396,14]
[396216825,1764828631446,-413.75,0.000396,14]
[396216826,1764828631471,-473.0,0.00039793,14]
[396216827,1764828631495,-572.52,0.00039798,30]
[396216828,1764828631519,-1267.82,0.000398,30]
[396216829,1764828631545,-500.0,0.00039863,30]
[396216830,1764828631569,-500.0,0.00039863,30]
[396216831,1764828631593,-2000.0,0.00039898,31]
[396216832,1764828631620,-401.15,0.000399,120]
[396216833,1764828631649,-3936667.24925408,0.000399,120]
[396216835,1764828631854,4000.0,0.00041738,120]
[396216841,1764828631916,1000.0,0.00041738,120]
[396216849,1764828631987,1000.0,0.00041738,120]
[396216855,1764828632063,1000.0,0.00041738,120]
[396216856,1764828632092,500.0,0.00041738,120]
[396216857,1764828632126,500.0,0.00041738,120]
[396216858,1764828632155,4000.0,0.00041738,120]
[396216859,1764828632192,1000.0,0.00041738,120]
[396216860,1764828632221,1000.0,0.00041738,120]
[396216863,1764828632256,1000.0,0.00041738,120]
[396216865,1764828632299,500.0,0.00041738,120]
[396216870,1764828632331,200.0,0.00041738,30]
[396216874,1764828632360,500.0,0.00041738,120]
[396216878,1764828632389,4000.0,0.00041738,120]
[396216881,1764828632417,1000.0,0.00041738,120]
[396216882,1764828632445,500.0,0.00041738,120]
[396216883,1764828632485,207.4,0.00041738,30]
[396216884,1764828632523,4000.0,0.00041738,120]
[396216885,1764828632552,1000.0,0.00041738,120]
[396216886,1764828632581,500.0,0.00041738,120]
[396216887,1764828632746,500.0,0.00041738,120]
[396216888,1764828632776,215.0738,0.00041738,30]
[396216889,1764828632806,151.0,0.00041738,50]
[396216890,1764828632846,4000.0,0.00041738,120]
[396216891,1764828632875,1000.0,0.00041738,120]
[396216892,1764828632904,500.0,0.00041738,120]
[396216893,1764828632966,152.110447,0.00041738,50]
[396216894,1764828633140,500.0,0.00041738,120]
[396216895,1764828633172,223.0315306,0.00041738,30]
[396216896,1764828633202,4000.0,0.00041738,120]
[396216897,1764828633233,1000.0,0.00041738,120]
[396216898,1764828633263,500.0,0.00041738,120]
[396216899,1764828633279,-255.0,0.00012781,2]
[396216900,1764828633289,-84.96236826,0.00012781,2]
[396216901,1764828633300,-150.27,0.00013293,2]
[396216902,1764828633309,-528.39,0.00013699,2]
[396216903,1764828633319,-150.27,0.00013804,2]
[396216904,1764828633329,-250.0,0.00014035,2]
[396216905,1764828633338,-195.0,0.00014059,2]
[396216906,1764828633348,-388.63637846,0.00014059,2]
[396216907,1764828633358,-250.0,0.00014059,2]
[396216908,1764828633368,-150.27,0.00014315,2]
[396216909,1764828633377,-166.66,0.0001442,2]
[396216910,1764828633386,-152.13280199,0.00014521,2]
[396216911,1764828633397,-166.66,0.00014724,2]
[396216912,1764828633407,-150.27,0.00014826,2]
[396216913,1764828633416,-166.66,0.00015028,2]
[396216914,1764828633426,-166.66,0.00015331,2]
[396216915,1764828633436,-150.27,0.00015338,2]
[396216916,1764828633446,-501.0,0.0001537,2]
[396216917,1764828633455,-1370.1,0.00015423,2]
[396216918,1764828633465,-448.58635199,0.00015565,2]
[396216919,1764828633477,-564.41364801,0.00015565,2]
[396216920,1764828633487,-93.81866157,0.00015635,2]
[396216921,1764828633499,-72.84133843,0.00015635,2]
[396216922,1764828633509,-252.0,0.00015649,2]
[396216923,1764828633518,-354.36887395,0.00015706,2]
[396216924,1764828633527,-200.0,0.00015758,2]
[396216925,1764828633537,-179.83493748,0.00015813,2]
[396216926,1764828633546,-1.53088245,0.00015849,2]
[396216927,1764828633557,-148.73911755,0.00015849,2]
[396216928,1764828633566,-166.66,0.00015938,2]
[396216929,1764828633576,-451.79,0.00015967,3]
[396216930,1764828633585,-198.0,0.0001615,2]
[396216931,1764828633595,-150.27,0.0001636,2]
[396216932,1764828633605,-150.0,0.00016647,2]
[396216933,1764828633618,-18967.327525,0.00016699,2]
[396216934,1764828633629,-4952.037175,0.00016699,2]
[396216935,1764828633639,-13061.05780027,0.0001672,2]
[396216936,1764828633649,-4326.15787133,0.0001672,2]
[396216937,1764828633660,-153.69360809,0.00016796,2]
[396216938,1764828633668,-500.0,0.00016798,2]
[396216939,1764828633678,-500.0,0.00016798,2]
[396216940,1764828633687,-3751.00742922,0.00016798,2]
[396216941,1764828633699,-999.0,0.00016798,2]
[396216942,1764828633710,-945.21123653,0.00016798,2]
[396216943,1764828633722,-4411.47823142,0.00016798,2]
[396216944,1764828633734,-753.54269787,0.00016798,2]
[396216945,1764828633778,500.0,0.00041738,120]
[396216946,1764828633819,4000.0,0.00041738,120]
[396216947,1764828633849,231.28369723,0.00041738,30]
[396216948,1764828633881,1000.0,0.00041738,120]
[396216949,1764828633910,500.0,0.00041738,120]
[396216950,1764828633957,500.0,0.00041738,120]
[396216951,1764828633993,4000.0,0.00041738,120]
[396216952,1764828634023,231.28369723,0.00041738,30]
[396216953,1764828634056,1000.0,0.00041738,120]
[396216954,1764828634095,500.0,0.00041738,120]
[396216955,1764828634124,151.0,0.00041738,120]
[396216956,1764828634152,1000.0,0.00041738,120]
[396216957,1764828634194,500.0,0.00041738,120]
[396216958,1764828634227,151.0,0.00041738,120]
[396216959,1764828634271,1000.0,0.00041738,120]
[396216960,1764828634661,151.0,0.00041738,120]
[396216961,1764828634998,1000.0,0.00041738,120]
[396216963,1764828635300,151.0,0.00041738,120]
[396216964,1764828635790,250.0,0.00041738,120]
[396216965,1764828635927,151.0,0.00041738,120]
[396216966,1764828636185,500.0,0.00041738,120]
[396216967,1764828636499,250.0,0.00041738,120]
[396216968,1764828636537,151.0,0.00041738,120]
[396216969,1764828636570,151.0,0.00041738,120]
[396216970,1764828636604,1950.0,0.00041738,120]
[396216971,1764828636826,500.0,0.00041738,120]
[396216972,1764828637151,250.0,0.00041738,120]
[396216973,1764828637238,151.0,0.00041738,120]
[396216974,1764828637273,151.0,0.00041738,120]
[396216975,1764828637304,1950.0,0.00041738,120]
[396216976,1764828637335,151.0,0.00041738,120]
[396216977,1764828637451,500.0,0.00041738,120]
[396216978,1764828637613,250.0,0.00041738,120]
[396216979,1764828637715,151.0,0.00041738,120]
[396216980,1764828637808,151.0,0.00041738,120]
[396216981,1764828637863,1950.0,0.00041738,120]
[396216982,1764828637895,151.0,0.00041738,120]
[396216983,1764828638069,500.0,0.00041738,120]
[396216984,1764828638170,-397.18293755,0.00016798,2]
[396216985,1764828638217,500.0,0.00041738,120]
[396216986,1764828638249,250.0,0.00041738,120]
[396216987,1764828638262,-3651.95390012,0.00016798,2]
[396216988,1764828638271,-556.83585957,0.00016798,2]
[396216989,1764828638281,-83.05458692,0.00016798,2]
[396216990,1764828638406,151.0,0.00041738,120]
[396216994,1764828638476,151.0,0.00041738,120]
[396216998,1764828638510,1950.0,0.00041738,120]
[396217001,1764828638672,500.0,0.00041738,120]
[396217002,1764828638774,151.0,0.00041738,120]
[396217003,1764828638832,500.0,0.00041738,120]
[396217004,1764828638864,250.0,0.00041738,120]
[396217005,1764828639024,151.0,0.00041738,120]
[396217006,1764828639098,151.0,0.00041738,120]
[396217007,1764828639131,1950.0,0.00041738,120]
[396217008,1764828639277,500.0,0.00041738,120]
[396217009,1764828639377,151.0,0.00041738,120]
[396217010,1764828639463,250.0,0.00041738,120]
[396217011,1764828639555,500.0,0.00041738,120]
[396217012,1764828639653,151.0,0.00041738,120]
[396217013,1764828639717,1950.0,0.00041738,120]
[396217014,1764828639748,151.0,0.00041738,120]
[396217017,1764828640024,151.0,0.00041738,120]
[396217018,1764828640037,-416.94541308,0.00016798,2]
[396217020,1764828640046,-500.0,0.00016798,2]
[396217021,1764828640055,-500.0,0.00016798,2]
[396217022,1764828640064,-500.0,0.00016798,2]
[396217023,1764828640073,-500.0,0.00016798,2]
[396217024,1764828640083,-500.0,0.00016798,2]
[396217025,1764828640092,-827.62590069,0.0001682,2]
[396217026,1764828640100,-376.57807234,0.000169,2]
[396217027,1764828640109,-162.8821936,0.000169,2]
[396217028,1764828640118,-304.19820894,0.000169,2]
[396217029,1764828640127,-500.0,0.00016973,2]
[396217030,1764828640136,-505.82554955,0.00016973,2]
[396217031,1764828640145,-500.0,0.00016973,2]
[396217032,1764828640154,-150.0,0.00016973,2]
[396217033,1764828640164,-500.0,0.00016973,2]
[396217034,1764828640173,-500.0,0.00016973,2]
[396217035,1764828640182,-150.0,0.00016973,2]
[396217036,1764828640191,-150.0,0.00016973,2]
[396217037,1764828640201,-151.0,0.00016986,2]
[396217038,1764828640211,-151.0,0.00016986,2]
[396217039,1764828640220,-1065.0,0.00016986,2]
[396217040,1764828640229,-19169.48994394,0.00016992,2]
[396217041,1764828640267,250.0,0.00041738,120]
[396217042,1764828640300,500.0,0.00041738,120]
[396217043,1764828640312,-378.66,0.00016992,2]
[396217044,1764828640327,-551.75042112,0.00016992,2]
[396217045,1764828640357,500.0,0.00041738,120]
[396217046,1764828640382,-569.12092677,0.00016992,2]
[396217047,1764828640412,151.0,0.00041738,120]
[396217048,1764828640430,-91362.01748637,0.00016992,2]
[396217049,1764828640447,-502.16669694,0.00016999,2]
[396217050,1764828640457,-500.0,0.00016999,2]
[396217051,1764828640467,-500.0,0.00016999,2]
[396217053,1764828640476,-500.0,0.00016999,2]
[396217056,1764828640689,-500.0,0.00016999,2]
[396217057,1764828640704,-386.00822049,0.00016999,2]
[396217058,1764828640713,-500.0,0.00016999,2]
[396217059,1764828640723,-500.0,0.00016999,2]
[396217060,1764828640732,-609.99983707,0.00016999,2]
[396217061,1764828640742,-500.0,0.00016999,2]
[396217062,1764828640751,-500.0,0.00016999,2]
[396217063,1764828640761,-500.0,0.00016999,2]
[396217064,1764828640770,-500.0,0.00016999,2]
[396217065,1764828640779,-500.0,0.00016999,2]
[396217066,1764828640788,-500.0,0.00016999,2]
[396217067,1764828640799,-300.0,0.00016999,2]
[396217068,1764828640808,-500.0,0.00016999,2]
[396217069,1764828640818,-150.0,0.00016999,2]
[396217070,1764828640827,-202.45561126,0.00016999,2]
[396217071,1764828640836,-150.0,0.00016999,2]
[396217072,1764828640846,-150.0,0.00016999,2]
[396217073,1764828640856,-1068.25,0.00016999,2]
[396217074,1764828640865,-208.45126976,0.00016999,2]
[396217075,1764828640874,-150.0,0.00016999,2]
[396217076,1764828640885,-500.0,0.00016999,2]
[396217077,1764828640894,-300.0,0.00016999,2]
[396217078,1764828640905,-500.0,0.00016999,2]
[396217079,1764828640914,-500.0,0.00016999,2]
[396217080,1764828640924,-500.0,0.00016999,2]
[396217081,1764828640935,-589.86040721,0.00016999,2]
[396217082,1764828640947,-500.0,0.00016999,2]
[396217083,1764828640956,-236.92908598,0.00016999,2]
[396217084,1764828640965,-500.0,0.00016999,2]
[396217085,1764828640975,-500.0,0.00016999,2]
[396217086,1764828640984,-500.0,0.00016999,2]
[396217087,1764828640993,-564.43349477,0.00016999,2]
[396217088,1764828641003,-190.62154736,0.00016999,2]
[396217089,1764828641014,-10267.0,0.00017,2]
[396217090,1764828641024,-1294515.72465429,0.00017,2]
[396217091,1764828641034,-1000.0,0.00017,2]
[396217092,1764828641043,-250.0,0.00017,2]
[396217093,1764828641054,-156.98308908,0.0001711,2]
[396217094,1764828641064,-500.0,0.0001711,2]
[396217095,1764828641074,-510.30255927,0.0001711,2]
[396217096,1764828641084,-150.0,0.0001711,2]
[396217097,1764828641094,-150.0,0.0001711,2]
[396217098,1764828641103,-500.0,0.00017136,2]
[396217099,1764828641113,-201.93748371,0.00017136,2]
[396217100,1764828641122,-150.0,0.00017136,2]
[396217101,1764828641132,-150.86420125,0.00017136,2]
[396217102,1764828641142,-150.0,0.00017136,2]
[396217103,1764828641151,-500.0,0.00017136,2]
[396217104,1764828641161,-500.0,0.00017247,2]
[396217105,1764828641171,-295.49167691,0.00017247,2]
[396217106,1764828641180,-150.0,0.00017247,2]
[396217107,1764828641190,-500.0,0.00017273,2]
[396217108,1764828641199,-265.01712022,0.00017273,2]
[396217109,1764828641208,-152.02518252,0.00017273,2]
[396217110,1764828641218,-634.68642272,0.00017273,2]
[396217111,1764828641227,-1068.25,0.00017273,2]
[396217112,1764828641236,-1370.1,0.00017351,2]
[396217113,1764828641245,-423.56700146,0.00017384,2]
[396217114,1764828641255,-150.0,0.00017384,2]
[396217115,1764828641264,-500.0,0.0001741,2]
[396217116,1764828641273,-1000.0,0.00017521,2]
[396217117,1764828641283,-1000.0,0.00017521,2]
[396217118,1764828641292,-510.31429567,0.00017547,2]
[396217119,1764828641301,-1068.25,0.00017547,2]
[396217120,1764828641311,-584.75,0.00017585,2]
[396217121,1764828641320,-480.06109419,0.00017602,2]
[396217122,1764828641329,-161.1,0.00017735,2]
[396217123,1764828641339,-621.64,0.00017808,2]
[396217124,1764828641349,-1068.25,0.00017821,2]
[396217125,1764828641359,-151.0,0.00017838,2]
[396217126,1764828641368,-151.0,0.00017838,2]
[396217127,1764828641378,-250.0,0.00017892,2]
[396217128,1764828641387,-1000.0,0.00017998,2]
[396217129,1764828641396,-26818.78880212,0.00018,2]
[396217130,1764828641406,-887.27272926,0.00018,2]
[396217131,1764828641416,-1183.49453852,0.00018,2]
[396217132,1764828641425,-5800.0,0.00018052,2]
[396217133,1764828641435,-173.24,0.00018052,2]
[396217134,1764828641444,-5800.0,0.0001806,2]
[396217135,1764828641454,-1098.94895177,0.00018068,2]
[396217136,1764828641464,-1512.92196681,0.00018068,2]
[396217137,1764828641474,-5800.0,0.00018069,2]
[396217138,1764828641483,-5800.0,0.00018077,2]
[396217139,1764828641493,-1000.0,0.00018082,2]
[396217140,1764828641502,-5800.0,0.00018086,2]
[396217141,1764828641512,-5800.0,0.00018094,2]
[396217142,1764828641522,-1068.25,0.00018095,2]
[396217143,1764828641531,-1769.01601649,0.000181,2]
[396217144,1764828641541,-500.0,0.00018102,2]
[396217145,1764828641550,-5800.0,0.00018103,2]
[396217146,1764828641559,-2127.0,0.00018212,2]
[396217147,1764828641568,-2127.0,0.00018228,2]
[396217148,1764828641578,-2127.0,0.00018248,2]
[396217149,1764828641587,-2127.0,0.00018333,2]
[396217150,1764828641596,-1931.0,0.00018346,2]
[396217151,1764828641607,-2127.0,0.0001836,2]
[396217152,1764828641618,-2127.0,0.00018366,2]
[396217153,1764828641628,-1068.25,0.00018369,2]
[396217154,1764828641638,-150.17113883,0.00018373,2]
[396217155,1764828641648,-13061.05780021,0.00018407,2]
[396217156,1764828641657,-4326.15787132,0.00018407,2]
[396217157,1764828641666,-1931.0,0.00018415,2]
[396217158,1764828641676,-2127.0,0.00018443,2]
[396217159,1764828641685,-2127.0,0.00018545,2]
[396217160,1764828641697,-1068.25,0.00018643,2]
[396217161,1764828641707,-1931.0,0.00018658,2]
[396217162,1764828641717,-161.1,0.00018668,2]
[396217163,1764828641728,-324.20103668,0.000187,2]
[396217164,1764828641737,-2127.0,0.00018722,2]
[396217165,1764828641747,-1000.0,0.0001876,2]
[396217166,1764828641756,-150.8,0.000188,2]
[396217167,1764828641765,-150.8,0.000188,2]
[396217168,1764828641775,-150.8,0.000188,2]
[396217169,1764828641784,-150.8,0.000188,2]
[396217170,1764828641793,-150.8,0.000188,2]
[396217171,1764828641803,-1068.25,0.00018917,2]
[396217172,1764828641812,-5139.59421298,0.00019,2]
[396217173,1764828641821,-286.41813863,0.00019,2]
[396217174,1764828641831,-811.90236964,0.00019,2]
[396217175,1764828641840,-300.0,0.00019,2]
[396217176,1764828641850,-2127.0,0.0001904,2]
[396217177,1764828641859,-500.0,0.00019178,2]
[396217178,1764828641868,-500.0,0.00019178,2]
[396217179,1764828641877,-500.0,0.00019178,2]
[396217180,1764828641886,-500.0,0.00019178,2]
[396217181,1764828641895,-500.0,0.00019178,2]
[396217182,1764828641904,-500.0,0.00019178,2]
[396217183,1764828641914,-500.0,0.00019178,2]
[396217184,1764828641923,-500.0,0.00019178,2]
[396217185,1764828641932,-3008.5532171,0.00019178,2]
[396217186,1764828641942,-621.64,0.00019178,2]
[396217187,1764828641952,-1068.25,0.00019191,2]
[396217188,1764828641961,-2502.081173,0.000192,2]
[396217189,1764828641971,-2502.081173,0.000192,2]
[396217190,1764828641980,-2502.081173,0.000192,2]
[396217191,1764828641990,-2502.081173,0.000192,2]
[396217192,1764828641999,-205.965314,0.000192,2]
[396217193,1764828642008,-1370.1,0.00019278,2]
[396217194,1764828642017,-1931.0,0.00019332,2]
[396217195,1764828642028,-200.0,0.00019397,2]
[396217196,1764828642037,-2127.0,0.00019436,2]
[396217197,1764828642047,-1000.0,0.00019438,2]
[396217198,1764828642055,-2127.0,0.0001945,2]
[396217199,1764828642065,-2127.0,0.00019461,2]
[396217200,1764828642074,-2127.0,0.00019462,2]
[396217201,1764828642084,-1068.25,0.00019465,2]
[396217202,1764828642093,-2706.166,0.0001952,2]
[396217203,1764828642102,-160.251,0.0001952,2]
[396217204,1764828642111,-2127.0,0.00019524,2]
[396217205,1764828642120,-500.0,0.00019527,2]
[396217206,1764828642129,-1609.562,0.00019528,2]
[396217207,1764828642139,-613.724,0.00019528,2]
[396217208,1764828642148,-1322.0,0.00019528,2]
[396217209,1764828642157,-2889.662,0.00019528,2]
[396217210,1764828642166,-615.445,0.00019528,2]
[396217211,1764828642175,-1261.565,0.00019528,2]
[396217212,1764828642184,-909.0,0.00019528,2]
[396217213,1764828642195,-1204.672,0.00019528,2]
[396217214,1764828642204,-4718.1,0.00019528,2]
[396217215,1764828642213,-562.0,0.00019528,2]
[396217216,1764828642223,-257.007,0.00019528,2]
[396217217,1764828642232,-6531.088,0.00019528,2]
[396217218,1764828642241,-161.1,0.00019601,2]
[396217219,1764828642250,-2127.0,0.00019615,2]
[396217220,1764828642259,-2127.0,0.00019726,2]
[396217221,1764828642268,-1068.25,0.00019739,2]
[396217222,1764828642277,-2127.0,0.00019803,2]
[396217223,1764828642287,-2127.0,0.00019943,2]
[396217224,1764828642295,-151.29932748,0.00019973,2]
[396217225,1764828642305,-150.8,0.0001999,2]
[396217226,1764828642315,-150.8,0.0001999,2]
[396217227,1764828642324,-2127.0,0.00019997,2]
[396217228,1764828642333,-10862.67530809,0.0002,2]
[396217229,1764828642342,-3950.0,0.0002,2]
[396217230,1764828642351,-73607.70844627,0.0002,2]
[396217231,1764828642361,-7251.90251763,0.0002,2]
[396217232,1764828642370,-1287.78072263,0.0002,2]
[396217233,1764828642379,-1039.45352697,0.0002,2]
[396217234,1764828642388,-2848.52996633,0.0002,2]
[396217235,1764828642397,-414.54289206,0.0002,2]
[396217236,1764828642406,-12857.70282579,0.0002,2]
[396217237,1764828642415,-250.318239,0.0002,2]
[396217238,1764828642424,-250.318239,0.0002,2]
[396217239,1764828642434,-250.318239,0.0002,2]
[396217240,1764828642443,-250.318239,0.0002,2]
[396217241,1764828642453,-8720.0,0.0002001,2]
[396217242,1764828642462,-1068.33030323,0.00020013,2]
[396217243,1764828642472,-2127.0,0.00020048,2]
[396217244,1764828642481,-2502.081173,0.00020093,2]
[396217245,1764828642490,-2502.081173,0.00020093,2]
[396217246,1764828642500,-2502.081173,0.00020093,2]
[396217247,1764828642509,-2502.081173,0.00020093,2]
[396217248,1764828642518,-13061.05780021,0.00020093,2]
[396217249,1764828642527,-4326.15787132,0.00020093,2]
[396217250,1764828642538,-1000.0,0.00020116,2]
[396217251,1764828642547,-528.39,0.00020187,2]
[396217252,1764828642556,-1000.0,0.00020248,2]
[396217253,1764828642566,-307.88,0.00020306,2]
[396217254,1764828642575,-348.16,0.00020306,2]
[396217255,1764828642584,-173.24,0.00020308,2]
[396217256,1764828642594,-161.1,0.00020535,2]
[396217257,1764828642603,-24997.5036241,0.00020572,2]
[396217258,1764828642612,-307.89,0.0002058,2]
[396217259,1764828642626,-348.16,0.0002058,2]
[396217260,1764828642636,-2000.0,0.000207,2]
[396217261,1764828642646,-1000.0,0.000207,2]
[396217262,1764828642655,-376.5780723,0.00020717,2]
[396217263,1764828642664,-1000.0,0.00020795,2]
[396217264,1764828642673,-348.17,0.00020854,2]
[396217265,1764828642682,-350.0,0.00021,2]
[396217266,1764828642694,-500.0,0.00021034,2]
[396217267,1764828642704,-500.0,0.00021171,2]
[396217268,1764828642714,-500.0,0.00021171,2]
[396217269,1764828642724,-255.9227717,0.00021178,2]
[396217270,1764828642733,-2010.46929123,0.000212,2]
[396217272,1764828642743,-1370.1,0.00021206,2]
[396217273,1764828642753,-18992.95870366,0.00021272,2]
[396217274,1764828642762,-250.318239,0.00021272,2]
[396217275,1764828642771,-250.318239,0.00021272,2]
[396217276,1764828642780,-250.318239,0.00021272,2]
[396217277,1764828642790,-250.318239,0.00021272,2]
[396217279,1764828642800,-5577.6969869,0.00021371,2]
[396217280,1764828642809,-999.0,0.00021425,3]
[396217281,1764828642819,-150.0,0.0002145,2]
[396217282,1764828642828,-150.118,0.0002145,2]
[396217284,1764828642838,-150.145,0.0002145,2]
[396217285,1764828642847,-150.0,0.0002145,2]
[396217286,1764828642856,-150.0,0.0002145,2]
[396217287,1764828642866,-161.1,0.00021468,2]
[396217288,1764828642875,-150.8,0.00021747,2]
[396217289,1764828642885,-500.0,0.00021756,2]
[396217290,1764828642894,-268.18,0.00021757,2]
[396217291,1764828642904,-150.99,0.00021757,2]
[396217292,1764828642913,-44842.11,0.00021757,2]
[396217293,1764828642923,-13061.05780021,0.0002178,2]
[396217294,1764828642933,-4326.15787132,0.0002178,2]
[396217295,1764828642943,-5000.0,0.00021918,2]